[Event "Titled Tuesday Blitz June 21 Late 2022"]
[White "De La Colina, Nicolas"]
[Black "Barp, Alberto"]
[WhiteFideId "30946921"]
[BlackFideId "872555"]
[WhiteElo "2046"]
[BlackElo "2229"]
[Result "0-1"]
[Round "04"]
[TimeControl "180+1"]
[Date "2022.06.22"]
[WhiteClock "0:00:03"]
[BlackClock "0:00:43"]

1. e4 {[%clk 0:03:00]}  d6 {[%clk 0:02:52]} 2. d4 {[%clk 0:02:59]}  Nf6 {[%clk 0:02:49]} 3. Nc3 {[%clk 0:02:59]}  e5 {[%clk 0:02:48]} 4. dxe5 {[%clk 0:03:00]}  dxe5 {[%clk 0:02:49]} 5. Qxd8+ {[%clk 0:02:59]}  Kxd8 {[%clk 0:02:50]} 6. Bg5 {[%clk 0:02:59]}  Be6 {[%clk 0:02:47]} 7. g3 {[%clk 0:02:59]}  Nd7 {[%clk 0:02:45]} 8. f4 {[%clk 0:02:59]}  h6 {[%clk 0:02:41]} 9. Bxf6+ {[%clk 0:02:44]}  Nxf6 {[%clk 0:02:42]} 10. f5 {[%clk 0:02:18]}  Bd7 {[%clk 0:02:41]} 11. O-O-O {[%clk 0:02:13]}  Bd6 {[%clk 0:02:37]} 12. Bc4 {[%clk 0:02:09]}  Ke7 {[%clk 0:02:36]} 13. Nd5+ {[%clk 0:02:02]}  Nxd5 {[%clk 0:02:35]} 14. Bxd5 {[%clk 0:02:03]}  c6 {[%clk 0:02:28]} 15. Bb3 {[%clk 0:02:03]}  f6 {[%clk 0:02:25]} 16. Nf3 {[%clk 0:02:01]}  a5 {[%clk 0:02:21]} 17. c3 {[%clk 0:01:55]}  b5 {[%clk 0:02:12]} 18. g4 {[%clk 0:01:49]}  Bc5 {[%clk 0:02:11]} 19. Nh4 {[%clk 0:01:34]}  Rhd8 {[%clk 0:02:07]} 20. Ng6+ {[%clk 0:01:29]}  Ke8 {[%clk 0:02:07]} 21. h4 {[%clk 0:01:19]}  a4 {[%clk 0:02:02]} 22. Be6 {[%clk 0:01:16]}  Bxe6 {[%clk 0:01:59]} 23. fxe6 {[%clk 0:01:17]}  Rxd1+ {[%clk 0:01:59]} 24. Rxd1 {[%clk 0:01:18]}  Rd8 {[%clk 0:01:57]} 25. h5 {[%clk 0:01:03]}  Rxd1+ {[%clk 0:01:51]} 26. Kxd1 {[%clk 0:01:03]}  Bf2 {[%clk 0:01:43]} 27. Ke2 {[%clk 0:01:02]}  Bg3 {[%clk 0:01:39]} 28. Kf3 {[%clk 0:01:01]}  Be1 {[%clk 0:01:35]} 29. Ke2 {[%clk 0:01:00]}  Bg3 {[%clk 0:01:09]} 30. Kf3 {[%clk 0:01:00]}  Be1 {[%clk 0:01:07]} 31. Ke2 {[%clk 0:01:00]}  a3 {[%clk 0:00:53]} 32. bxa3 {[%clk 0:01:01]}  Bxc3 {[%clk 0:00:53]} 33. Nh4 {[%clk 0:00:46]}  Bb2 {[%clk 0:00:53]} 34. Nf5 {[%clk 0:00:44]}  Kf8 {[%clk 0:00:53]} 35. e7+ {[%clk 0:00:29]}  Kf7 {[%clk 0:00:54]} 36. Nxg7 {[%clk 0:00:26]}  Kxe7 {[%clk 0:00:53]} 37. Nf5+ {[%clk 0:00:27]}  Ke6 {[%clk 0:00:52]} 38. Nxh6 {[%clk 0:00:28]}  Bxa3 {[%clk 0:00:52]} 39. Nf5 {[%clk 0:00:28]}  Bf8 {[%clk 0:00:52]} 40. h6 {[%clk 0:00:23]}  Kf7 {[%clk 0:00:51]} 41. h7 {[%clk 0:00:12]}  Bg7 {[%clk 0:00:51]} 42. Nd6+ {[%clk 0:00:08]}  Kg6 {[%clk 0:00:50]} 43. Nc8 {[%clk 0:00:06]}  Kxh7 {[%clk 0:00:49]} 44. Na7 {[%clk 0:00:06]}  Kg6 {[%clk 0:00:48]} 45. Nxc6 {[%clk 0:00:06]}  Kg5 {[%clk 0:00:48]} 46. Kf3 {[%clk 0:00:06]}  Bf8 {[%clk 0:00:44]} 47. Nd8 {[%clk 0:00:04]}  Be7 {[%clk 0:00:43]} 48. Nc6 {[%clk 0:00:04]}  Bd6 {[%clk 0:00:42]} 49. Nd8 {[%clk 0:00:03]}  Kg6 {[%clk 0:00:42]} 50. Nc6 {[%clk 0:00:02]}  Kf7 {[%clk 0:00:42]} 51. Na5 {[%clk 0:00:03]}  Ke6 {[%clk 0:00:42]} 52. Nb3 {[%clk 0:00:03]}  Kd7 {[%clk 0:00:42]} 53. Ke2 {[%clk 0:00:03]}  Kc6 {[%clk 0:00:42]} 54. Kd3 {[%clk 0:00:04]}  Bf8 {[%clk 0:00:42]} 55. Ke2 {[%clk 0:00:03]}  b4 {[%clk 0:00:42]} 56. Kd3 {[%clk 0:00:03]}  Kb5 {[%clk 0:00:43]} 0-1


[Site "https://www.chess.com"]

[Event "Titled Tuesday Blitz June 21 Late 2022"]
[White "Deac, Bogdan-Daniel"]
[Black "Dardha, Daniel"]
[WhiteFideId "1226380"]
[BlackFideId "240990"]
[WhiteElo "2648"]
[BlackElo "2482"]
[Result "0-1"]
[Round "04"]
[TimeControl "180+1"]
[Date "2022.06.21"]
[WhiteClock "0:00:02"]
[BlackClock "0:00:24"]

1. e4 {[%clk 0:03:00]}  e5 {[%clk 0:02:58]} 2. Nf3 {[%clk 0:03:01]}  Nc6 {[%clk 0:02:56]} 3. Bb5 {[%clk 0:03:00]}  Nf6 {[%clk 0:02:54]} 4. d3 {[%clk 0:03:00]}  Bc5 {[%clk 0:02:53]} 5. Bxc6 {[%clk 0:02:59]}  dxc6 {[%clk 0:02:52]} 6. Nbd2 {[%clk 0:03:00]}  Nd7 {[%clk 0:02:47]} 7. Nc4 {[%clk 0:02:59]}  Qe7 {[%clk 0:02:44]} 8. c3 {[%clk 0:02:56]}  Bd6 {[%clk 0:02:38]} 9. O-O {[%clk 0:02:54]}  O-O {[%clk 0:02:37]} 10. Re1 {[%clk 0:02:53]}  Nb6 {[%clk 0:02:31]} 11. Na5 {[%clk 0:02:44]}  c5 {[%clk 0:02:21]} 12. a3 {[%clk 0:02:40]}  Rb8 {[%clk 0:02:11]} 13. b4 {[%clk 0:02:31]}  Bd7 {[%clk 0:02:10]} 14. Be3 {[%clk 0:02:21]}  Na4 {[%clk 0:02:08]} 15. Qc2 {[%clk 0:02:20]}  b6 {[%clk 0:02:03]} 16. Nc4 {[%clk 0:02:20]}  b5 {[%clk 0:01:59]} 17. Nxd6 {[%clk 0:01:51]}  cxd6 {[%clk 0:01:58]} 18. bxc5 {[%clk 0:01:36]}  dxc5 {[%clk 0:01:54]} 19. d4 {[%clk 0:01:36]}  cxd4 {[%clk 0:01:53]} 20. cxd4 {[%clk 0:01:36]}  Rfc8 {[%clk 0:01:52]} 21. Qd2 {[%clk 0:01:34]}  exd4 {[%clk 0:01:50]} 22. Bxd4 {[%clk 0:01:35]}  Be6 {[%clk 0:01:41]} 23. Qf4 {[%clk 0:00:39]}  Rd8 {[%clk 0:01:30]} 24. h4 {[%clk 0:00:36]}  h6 {[%clk 0:01:28]} 25. h5 {[%clk 0:00:33]}  Rbc8 {[%clk 0:01:27]} 26. Qg3 {[%clk 0:00:23]}  f6 {[%clk 0:01:21]} 27. e5 {[%clk 0:00:20]}  f5 {[%clk 0:01:21]} 28. Be3 {[%clk 0:00:20]}  Kh8 {[%clk 0:01:10]} 29. Nh4 {[%clk 0:00:19]}  Qf7 {[%clk 0:01:10]} 30. Ng6+ {[%clk 0:00:14]}  Kh7 {[%clk 0:01:10]} 31. Rac1 {[%clk 0:00:14]}  Rc4 {[%clk 0:01:07]} 32. f3 {[%clk 0:00:07]}  Nc3 {[%clk 0:01:06]} 33. Nf4 {[%clk 0:00:06]}  Kh8 {[%clk 0:01:01]} 34. Kh2 {[%clk 0:00:04]}  Nd5 {[%clk 0:00:58]} 35. Ng6+ {[%clk 0:00:04]}  Kh7 {[%clk 0:00:58]} 36. Rxc4 {[%clk 0:00:04]}  bxc4 {[%clk 0:00:58]} 37. Qf2 {[%clk 0:00:05]}  f4 {[%clk 0:00:56]} 38. Bc1 {[%clk 0:00:04]}  Qf5 {[%clk 0:00:56]} 39. Qh4 {[%clk 0:00:05]}  Re8 {[%clk 0:00:52]} 40. Nxf4 {[%clk 0:00:03]}  Nxf4 {[%clk 0:00:51]} 41. Bxf4 {[%clk 0:00:03]}  c3 {[%clk 0:00:50]} 42. Bc1 {[%clk 0:00:04]}  c2 {[%clk 0:00:49]} 43. Re4 {[%clk 0:00:04]}  Bf7 {[%clk 0:00:47]} 44. Qf2 {[%clk 0:00:03]}  Rxe5 {[%clk 0:00:41]} 45. Qxc2 {[%clk 0:00:03]}  Qxh5+ {[%clk 0:00:40]} 46. Rh4+ {[%clk 0:00:03]}  Bg6 {[%clk 0:00:38]} 47. Qc4 {[%clk 0:00:03]}  Qf5 {[%clk 0:00:35]} 48. Qc7 {[%clk 0:00:03]}  h5 {[%clk 0:00:27]} 49. Bf4 {[%clk 0:00:03]}  Re2 {[%clk 0:00:26]} 50. Qd6 {[%clk 0:00:02]}  Qc2 {[%clk 0:00:24]} 0-1


[Site "https://www.chess.com"]

[Event "Titled Tuesday Blitz June 21 Late 2022"]
[White "Domingo Nunez, Alejandro"]
[Black "Culum, Sanjin"]
[WhiteFideId "22245561"]
[BlackFideId "14420937"]
[WhiteElo "2215"]
[BlackElo "2013"]
[Result "1-0"]
[Round "04"]
[TimeControl "180+1"]
[Date "2022.06.22"]
[WhiteClock "0:00:54"]
[BlackClock "0:00:27"]

1. Nf3 {[%clk 0:02:55]}  Nf6 {[%clk 0:02:59]} 2. g3 {[%clk 0:02:55]}  g6 {[%clk 0:02:59]} 3. b3 {[%clk 0:02:55]}  Bg7 {[%clk 0:02:59]} 4. Bb2 {[%clk 0:02:56]}  O-O {[%clk 0:03:00]} 5. Bg2 {[%clk 0:02:56]}  d6 {[%clk 0:02:59]} 6. d4 {[%clk 0:02:56]}  Nc6 {[%clk 0:02:45]} 7. O-O {[%clk 0:02:55]}  e5 {[%clk 0:02:45]} 8. dxe5 {[%clk 0:02:56]}  Ng4 {[%clk 0:02:45]} 9. c4 {[%clk 0:02:49]}  Ngxe5 {[%clk 0:02:44]} 10. Nxe5 {[%clk 0:02:48]}  dxe5 {[%clk 0:02:39]} 11. Nc3 {[%clk 0:02:32]}  Bf5 {[%clk 0:02:21]} 12. Nd5 {[%clk 0:02:10]}  Nd4 {[%clk 0:02:08]} 13. e3 {[%clk 0:02:10]}  Nc2 {[%clk 0:01:47]} 14. e4 {[%clk 0:01:31]}  Bxe4 {[%clk 0:01:18]} 15. Bxe4 {[%clk 0:01:29]}  Nxa1 {[%clk 0:01:18]} 16. Qxa1 {[%clk 0:01:29]}  f5 {[%clk 0:01:18]} 17. Bg2 {[%clk 0:01:29]}  c6 {[%clk 0:01:18]} 18. Bxe5 {[%clk 0:01:21]}  Bxe5 {[%clk 0:00:24]} 19. Qxe5 {[%clk 0:01:21]}  cxd5 {[%clk 0:00:25]} 20. Bxd5+ {[%clk 0:01:21]}  Rf7 {[%clk 0:00:25]} 21. Re1 {[%clk 0:00:58]}  Qb8 {[%clk 0:00:26]} 22. Qxb8+ {[%clk 0:00:54]}  Rxb8 {[%clk 0:00:27]} 23. Re7 {[%clk 0:00:54]} 1-0


[Site "https://www.chess.com"]

[Event "Titled Tuesday Blitz June 21 Late 2022"]
[White "Domingo Nunez, Ruben"]
[Black "Paravyan, David"]
[WhiteFideId "22245570"]
[BlackFideId "4194985"]
[WhiteElo "2376"]
[BlackElo "2569"]
[Result "0-1"]
[Round "04"]
[TimeControl "180+1"]
[Date "2022.06.21"]
[WhiteClock "0:00:35"]
[BlackClock "0:02:26"]

1. c4 {[%clk 0:03:00]}  Nf6 {[%clk 0:02:59]} 2. Nc3 {[%clk 0:03:00]}  d5 {[%clk 0:02:59]} 3. cxd5 {[%clk 0:02:58]}  Nxd5 {[%clk 0:02:59]} 4. g3 {[%clk 0:02:58]}  e5 {[%clk 0:02:55]} 5. Bg2 {[%clk 0:02:58]}  Nxc3 {[%clk 0:02:55]} 6. bxc3 {[%clk 0:02:57]}  Bd6 {[%clk 0:02:54]} 7. Qa4+ {[%clk 0:02:51]}  Bd7 {[%clk 0:02:51]} 8. Qb3 {[%clk 0:02:51]}  Nc6 {[%clk 0:02:47]} 9. Qxb7 {[%clk 0:02:48]}  Rb8 {[%clk 0:02:47]} 10. Qa6 {[%clk 0:02:49]}  O-O {[%clk 0:02:46]} 11. Nf3 {[%clk 0:02:31]}  e4 {[%clk 0:02:46]} 12. Ng1 {[%clk 0:02:01]}  Ne5 {[%clk 0:02:46]} 13. Qxa7 {[%clk 0:01:45]}  Qe7 {[%clk 0:02:40]} 14. Qd4 {[%clk 0:01:42]}  Bc5 {[%clk 0:02:40]} 15. Qxe4 {[%clk 0:01:27]}  Bc6 {[%clk 0:02:39]} 16. Qxc6 {[%clk 0:01:27]}  Nxc6 {[%clk 0:02:40]} 17. Bxc6 {[%clk 0:01:28]}  Bxf2+ {[%clk 0:02:37]} 18. Kxf2 {[%clk 0:01:23]}  Qc5+ {[%clk 0:02:37]} 19. Kg2 {[%clk 0:00:48]}  Qxc6+ {[%clk 0:02:38]} 20. Nf3 {[%clk 0:00:49]}  Rfe8 {[%clk 0:02:35]} 21. Kf2 {[%clk 0:00:49]}  Qc5+ {[%clk 0:02:29]} 22. Nd4 {[%clk 0:00:49]}  Rb6 {[%clk 0:02:27]} 23. a4 {[%clk 0:00:41]}  Rf6+ {[%clk 0:02:26]} 24. Ke1 {[%clk 0:00:42]}  Qd5 {[%clk 0:02:24]} 25. Rg1 {[%clk 0:00:42]}  c5 {[%clk 0:02:25]} 26. Nc2 {[%clk 0:00:35]}  Rxe2+ {[%clk 0:02:24]} 27. Kxe2 {[%clk 0:00:34]}  Qf3+ {[%clk 0:02:24]} 28. Ke1 {[%clk 0:00:35]}  Qf2+ {[%clk 0:02:24]} 29. Kd1 {[%clk 0:00:35]}  Qxg1+ {[%clk 0:02:25]} 30. Ke2 {[%clk 0:00:35]}  Re6+ {[%clk 0:02:25]} 31. Kd3 {[%clk 0:00:35]}  Qf1# {[%clk 0:02:26]} 0-1


[Site "https://www.chess.com"]

[Event "Titled Tuesday Blitz June 21 Late 2022"]
[White "Flynn, Jacob"]
[Black "Adewumi, Tanitoluwa"]
[WhiteFideId "2509393"]
[BlackFideId "30966396"]
[WhiteElo "1896"]
[BlackElo "2530"]
[Result "0-1"]
[Round "04"]
[TimeControl "180+1"]
[Date "2022.06.22"]
[WhiteClock "0:00:01"]
[BlackClock "0:00:20"]

1. d4 {[%clk 0:02:18]}  Nf6 {[%clk 0:02:59]} 2. c4 {[%clk 0:02:17]}  e6 {[%clk 0:02:45]} 3. g3 {[%clk 0:02:12]}  d5 {[%clk 0:02:44]} 4. Bg2 {[%clk 0:02:12]}  Bb4+ {[%clk 0:02:42]} 5. Nd2 {[%clk 0:02:11]}  O-O {[%clk 0:02:41]} 6. Nf3 {[%clk 0:02:12]}  c5 {[%clk 0:02:41]} 7. dxc5 {[%clk 0:02:06]}  Bxc5 {[%clk 0:02:39]} 8. cxd5 {[%clk 0:01:58]}  exd5 {[%clk 0:02:38]} 9. O-O {[%clk 0:01:58]}  Nc6 {[%clk 0:02:36]} 10. Nb3 {[%clk 0:01:58]}  Bb6 {[%clk 0:02:36]} 11. Nfd4 {[%clk 0:01:46]}  Re8 {[%clk 0:02:33]} 12. Bf4 {[%clk 0:01:37]}  Bg4 {[%clk 0:02:16]} 13. Re1 {[%clk 0:01:13]}  Qd7 {[%clk 0:02:13]} 14. Nxc6 {[%clk 0:01:08]}  bxc6 {[%clk 0:02:12]} 15. Rc1 {[%clk 0:01:02]}  Ne4 {[%clk 0:01:55]} 16. Nd4 {[%clk 0:00:44]}  c5 {[%clk 0:01:42]} 17. Nf3 {[%clk 0:00:42]}  c4 {[%clk 0:01:20]} 18. Nd4 {[%clk 0:00:36]}  Bh3 {[%clk 0:01:12]} 19. Be3 {[%clk 0:00:35]}  Bxg2 {[%clk 0:01:10]} 20. Kxg2 {[%clk 0:00:35]}  Rad8 {[%clk 0:01:11]} 21. b3 {[%clk 0:00:18]}  c3 {[%clk 0:01:05]} 22. Qd3 {[%clk 0:00:17]}  h5 {[%clk 0:00:44]} 23. f3 {[%clk 0:00:17]}  Nd6 {[%clk 0:00:36]} 24. Rxc3 {[%clk 0:00:13]}  Re5 {[%clk 0:00:35]} 25. b4 {[%clk 0:00:09]}  Rxe3 {[%clk 0:00:35]} 26. Qxe3 {[%clk 0:00:08]}  Nf5 {[%clk 0:00:35]} 27. Qd3 {[%clk 0:00:03]}  Bxd4 {[%clk 0:00:31]} 28. Rb3 {[%clk 0:00:03]}  Ne3+ {[%clk 0:00:31]} 29. Kh1 {[%clk 0:00:03]}  Qh3 {[%clk 0:00:29]} 30. Rg1 {[%clk 0:00:04]}  Nf1 {[%clk 0:00:21]} 31. Qxd4 {[%clk 0:00:01]}  Qxh2# {[%clk 0:00:20]} 0-1


[Site "https://www.chess.com"]

[Event "Titled Tuesday Blitz June 21 Late 2022"]
[White "Gimenez Aguirre, Alejo Ismael"]
[Black "Svicevic, Rastko"]
[WhiteFideId "32041667"]
[BlackFideId "916315"]
[WhiteElo "2031"]
[BlackElo "2049"]
[Result "1-0"]
[Round "04"]
[TimeControl "180+1"]
[Date "2022.06.22"]
[WhiteClock "0:01:24"]
[BlackClock "0:00:19"]

1. e4 {[%clk 0:03:00]}  c6 {[%clk 0:03:00]} 2. d4 {[%clk 0:02:59]}  d5 {[%clk 0:03:00]} 3. Nd2 {[%clk 0:03:00]}  dxe4 {[%clk 0:03:00]} 4. Nxe4 {[%clk 0:03:01]}  Nf6 {[%clk 0:03:00]} 5. Nxf6+ {[%clk 0:02:59]}  exf6 {[%clk 0:03:01]} 6. Nf3 {[%clk 0:03:00]}  Bd6 {[%clk 0:02:58]} 7. Be2 {[%clk 0:03:01]}  O-O {[%clk 0:02:26]} 8. Be3 {[%clk 0:02:59]}  Qc7 {[%clk 0:02:24]} 9. Qd2 {[%clk 0:02:59]}  Bg4 {[%clk 0:02:16]} 10. O-O-O {[%clk 0:02:58]}  b5 {[%clk 0:02:13]} 11. h3 {[%clk 0:02:57]}  Bh5 {[%clk 0:02:12]} 12. g4 {[%clk 0:02:56]}  Bg6 {[%clk 0:02:13]} 13. h4 {[%clk 0:02:54]}  Nd7 {[%clk 0:02:08]} 14. g5 {[%clk 0:02:48]}  Rfe8 {[%clk 0:01:57]} 15. Rdg1 {[%clk 0:02:34]}  Kh8 {[%clk 0:01:56]} 16. h5 {[%clk 0:02:33]}  Be4 {[%clk 0:01:54]} 17. g6 {[%clk 0:02:28]}  Bxf3 {[%clk 0:01:43]} 18. Bxf3 {[%clk 0:02:29]}  Nf8 {[%clk 0:01:37]} 19. gxh7 {[%clk 0:02:25]}  Nxh7 {[%clk 0:01:32]} 20. Rg2 {[%clk 0:02:23]}  Ng5 {[%clk 0:01:28]} 21. Be2 {[%clk 0:02:14]}  Ne4 {[%clk 0:01:10]} 22. Qd3 {[%clk 0:02:10]}  Bf4 {[%clk 0:01:10]} 23. Kb1 {[%clk 0:02:02]}  Bxe3 {[%clk 0:01:04]} 24. Qxe3 {[%clk 0:02:02]}  Ng5 {[%clk 0:01:03]} 25. Qd2 {[%clk 0:01:59]}  Rad8 {[%clk 0:01:00]} 26. c3 {[%clk 0:01:59]}  c5 {[%clk 0:00:58]} 27. Bxb5 {[%clk 0:01:58]}  Re6 {[%clk 0:00:56]} 28. d5 {[%clk 0:01:54]}  c4 {[%clk 0:00:50]} 29. h6 {[%clk 0:01:40]}  g6 {[%clk 0:00:49]} 30. Qd4 {[%clk 0:01:27]}  Rb6 {[%clk 0:00:20]} 31. Rxg5 {[%clk 0:01:25]}  Rxb5 {[%clk 0:00:19]} 32. Qxf6+ {[%clk 0:01:24]} 1-0


[Site "https://www.chess.com"]

[Event "Titled Tuesday Blitz June 21 Late 2022"]
[White "Grischuk, Alexander"]
[Black "Lashkin, Jegor"]
[WhiteFideId "4126025"]
[BlackFideId "13907808"]
[WhiteElo "2762"]
[BlackElo "2368"]
[Result "1-0"]
[Round "04"]
[TimeControl "180+1"]
[Date "2022.06.21"]
[WhiteClock "0:00:17"]
[BlackClock "0:00:03"]

1. d4 {[%clk 0:03:00]}  Nf6 {[%clk 0:02:59]} 2. Nf3 {[%clk 0:03:01]}  d5 {[%clk 0:02:59]} 3. Bf4 {[%clk 0:03:01]}  e6 {[%clk 0:02:59]} 4. Nbd2 {[%clk 0:03:01]}  Bd6 {[%clk 0:02:58]} 5. Bg5 {[%clk 0:03:01]}  h6 {[%clk 0:02:58]} 6. Bxf6 {[%clk 0:03:02]}  Qxf6 {[%clk 0:02:58]} 7. e4 {[%clk 0:03:02]}  Qd8 {[%clk 0:02:58]} 8. Bd3 {[%clk 0:03:02]}  c5 {[%clk 0:02:36]} 9. e5 {[%clk 0:03:02]}  Be7 {[%clk 0:02:36]} 10. dxc5 {[%clk 0:03:03]}  Bxc5 {[%clk 0:02:35]} 11. Nb3 {[%clk 0:02:59]}  Bb6 {[%clk 0:02:34]} 12. Rc1 {[%clk 0:02:59]}  Nc6 {[%clk 0:02:28]} 13. c4 {[%clk 0:02:31]}  dxc4 {[%clk 0:02:26]} 14. Rxc4 {[%clk 0:02:30]}  Na5 {[%clk 0:02:00]} 15. Rg4 {[%clk 0:02:24]}  O-O {[%clk 0:01:54]} 16. O-O {[%clk 0:02:19]}  Nxb3 {[%clk 0:01:50]} 17. axb3 {[%clk 0:02:09]}  Bd7 {[%clk 0:01:50]} 18. Bb1 {[%clk 0:02:03]}  Qe7 {[%clk 0:01:29]} 19. Qd2 {[%clk 0:01:41]}  Kh8 {[%clk 0:01:04]} 20. Rh4 {[%clk 0:01:41]}  Kg8 {[%clk 0:00:59]} 21. Qd3 {[%clk 0:01:33]}  g6 {[%clk 0:00:47]} 22. Qd2 {[%clk 0:01:30]}  h5 {[%clk 0:00:38]} 23. Qh6 {[%clk 0:01:22]}  f5 {[%clk 0:00:33]} 24. Qxg6+ {[%clk 0:01:13]}  Qg7 {[%clk 0:00:31]} 25. Qxh5 {[%clk 0:01:13]}  Be8 {[%clk 0:00:25]} 26. Qh6 {[%clk 0:01:10]}  Qxh6 {[%clk 0:00:20]} 27. Rxh6 {[%clk 0:01:11]}  Bf7 {[%clk 0:00:16]} 28. Ng5 {[%clk 0:01:09]}  Rae8 {[%clk 0:00:10]} 29. Bd3 {[%clk 0:00:37]}  Re7 {[%clk 0:00:10]} 30. Bc4 {[%clk 0:00:35]}  Rfe8 {[%clk 0:00:11]} 31. Rd1 {[%clk 0:00:30]}  Kg7 {[%clk 0:00:06]} 32. Nxf7 {[%clk 0:00:30]}  Kxf7 {[%clk 0:00:05]} 33. Kf1 {[%clk 0:00:25]}  Kg7 {[%clk 0:00:05]} 34. Rf6 {[%clk 0:00:22]}  Bc7 {[%clk 0:00:04]} 35. f4 {[%clk 0:00:23]}  Bb6 {[%clk 0:00:05]} 36. Rd3 {[%clk 0:00:23]}  Kh8 {[%clk 0:00:04]} 37. Rh3+ {[%clk 0:00:22]}  Rh7 {[%clk 0:00:04]} 38. Rxh7+ {[%clk 0:00:22]}  Kxh7 {[%clk 0:00:05]} 39. Bxe6 {[%clk 0:00:21]}  Bd4 {[%clk 0:00:06]} 40. Bxf5+ {[%clk 0:00:19]}  Kg7 {[%clk 0:00:06]} 41. Rg6+ {[%clk 0:00:17]}  Kf7 {[%clk 0:00:06]} 42. Rd6 {[%clk 0:00:18]}  Bxb2 {[%clk 0:00:06]} 43. Rd7+ {[%clk 0:00:18]}  Re7 {[%clk 0:00:07]} 44. Rxe7+ {[%clk 0:00:18]}  Kxe7 {[%clk 0:00:07]} 45. Ke2 {[%clk 0:00:19]}  a5 {[%clk 0:00:07]} 46. Bd3 {[%clk 0:00:17]}  Bc1 {[%clk 0:00:07]} 47. Kf3 {[%clk 0:00:17]}  Ke6 {[%clk 0:00:05]} 48. Ke4 {[%clk 0:00:18]}  Ke7 {[%clk 0:00:04]} 49. h4 {[%clk 0:00:18]}  Kf7 {[%clk 0:00:03]} 50. h5 {[%clk 0:00:17]}  Kg7 {[%clk 0:00:04]} 51. g4 {[%clk 0:00:18]}  Ba3 {[%clk 0:00:03]} 52. g5 {[%clk 0:00:17]} 1-0


[Site "https://www.chess.com"]

[Event "Titled Tuesday Blitz June 21 Late 2022"]
[White "Gubajdullin, Alexei"]
[Black "Wagner, Dennis"]
[WhiteFideId "4141202"]
[BlackFideId "24650684"]
[WhiteElo "2280"]
[BlackElo "2355"]
[Result "0-1"]
[Round "04"]
[TimeControl "180+1"]
[Date "2022.06.22"]
[WhiteClock "0:00:04"]
[BlackClock "0:00:11"]

1. g3 {[%clk 0:02:59]}  e5 {[%clk 0:02:57]} 2. c4 {[%clk 0:02:58]}  c6 {[%clk 0:02:55]} 3. Nf3 {[%clk 0:02:51]}  e4 {[%clk 0:02:55]} 4. Nd4 {[%clk 0:02:51]}  d5 {[%clk 0:02:56]} 5. d3 {[%clk 0:02:39]}  Bb4+ {[%clk 0:02:37]} 6. Nc3 {[%clk 0:02:32]}  dxc4 {[%clk 0:02:31]} 7. dxe4 {[%clk 0:02:30]}  Nf6 {[%clk 0:02:11]} 8. Bg2 {[%clk 0:02:29]}  c5 {[%clk 0:02:08]} 9. Nc2 {[%clk 0:02:29]}  Bxc3+ {[%clk 0:02:04]} 10. bxc3 {[%clk 0:02:27]}  Qxd1+ {[%clk 0:02:03]} 11. Kxd1 {[%clk 0:02:27]}  O-O {[%clk 0:02:04]} 12. Ne3 {[%clk 0:02:25]}  Be6 {[%clk 0:02:01]} 13. Kc2 {[%clk 0:02:23]}  Nc6 {[%clk 0:02:00]} 14. Nd5 {[%clk 0:02:21]}  Nd7 {[%clk 0:01:46]} 15. Nc7 {[%clk 0:02:11]}  Rac8 {[%clk 0:01:45]} 16. Nxe6 {[%clk 0:02:11]}  fxe6 {[%clk 0:01:46]} 17. f3 {[%clk 0:02:09]}  h6 {[%clk 0:01:40]} 18. Bh3 {[%clk 0:02:07]}  Kf7 {[%clk 0:01:41]} 19. Rd1 {[%clk 0:02:05]}  Ke7 {[%clk 0:01:41]} 20. a4 {[%clk 0:02:03]}  Na5 {[%clk 0:01:40]} 21. Bf4 {[%clk 0:02:01]}  Rc6 {[%clk 0:01:32]} 22. Be3 {[%clk 0:01:32]}  Nb3 {[%clk 0:01:31]} 23. Ra2 {[%clk 0:01:29]}  b6 {[%clk 0:01:20]} 24. f4 {[%clk 0:01:27]}  Nf6 {[%clk 0:01:12]} 25. Bg2 {[%clk 0:01:22]}  e5 {[%clk 0:01:07]} 26. h3 {[%clk 0:01:03]}  Re6 {[%clk 0:01:06]} 27. fxe5 {[%clk 0:00:59]}  Nd7 {[%clk 0:00:56]} 28. a5 {[%clk 0:00:58]}  b5 {[%clk 0:00:45]} 29. a6 {[%clk 0:00:32]}  Nxe5 {[%clk 0:00:43]} 30. Ra3 {[%clk 0:00:31]}  Rd6 {[%clk 0:00:40]} 31. Re1 {[%clk 0:00:24]}  Rfd8 {[%clk 0:00:37]} 32. Bf4 {[%clk 0:00:21]}  Rd2+ {[%clk 0:00:33]} 33. Bxd2 {[%clk 0:00:21]}  Rxd2+ {[%clk 0:00:34]} 34. Kb1 {[%clk 0:00:21]}  b4 {[%clk 0:00:34]} 35. cxb4 {[%clk 0:00:16]}  cxb4 {[%clk 0:00:34]} 36. Rxb3 {[%clk 0:00:15]}  cxb3 {[%clk 0:00:34]} 37. Rc1 {[%clk 0:00:15]}  Kd6 {[%clk 0:00:21]} 38. Bf1 {[%clk 0:00:14]}  Nd7 {[%clk 0:00:10]} 39. e3 {[%clk 0:00:14]}  Nc5 {[%clk 0:00:11]} 40. Bb5 {[%clk 0:00:14]}  Nxe4 {[%clk 0:00:11]} 41. Rc6+ {[%clk 0:00:04]}  Ke5 {[%clk 0:00:11]} 0-1


[Site "https://www.chess.com"]

[Event "Titled Tuesday Blitz June 21 Late 2022"]
[White "Indjic, Aleksandar"]
[Black "Sernecki, Franciszek"]
[WhiteFideId "911925"]
[BlackFideId "1169297"]
[WhiteElo "2616"]
[BlackElo "2168"]
[Result "1-0"]
[Round "04"]
[TimeControl "180+1"]
[Date "2022.06.21"]
[WhiteClock "0:01:55"]
[BlackClock "0:00:02"]

1. Nc3 {[%clk 0:03:00]}  e6 {[%clk 0:02:53]} 2. d4 {[%clk 0:02:58]}  d5 {[%clk 0:02:52]} 3. e4 {[%clk 0:02:57]}  Bb4 {[%clk 0:02:51]} 4. e5 {[%clk 0:02:55]}  Ne7 {[%clk 0:02:50]} 5. a3 {[%clk 0:02:51]}  Bxc3+ {[%clk 0:02:49]} 6. bxc3 {[%clk 0:02:52]}  c5 {[%clk 0:02:49]} 7. h4 {[%clk 0:02:49]}  Qa5 {[%clk 0:02:46]} 8. Bd2 {[%clk 0:02:48]}  Qa4 {[%clk 0:02:46]} 9. h5 {[%clk 0:02:45]}  h6 {[%clk 0:02:46]} 10. Nf3 {[%clk 0:02:42]}  b6 {[%clk 0:02:44]} 11. Rh4 {[%clk 0:02:41]}  Nf5 {[%clk 0:02:24]} 12. Rf4 {[%clk 0:02:38]}  cxd4 {[%clk 0:02:18]} 13. g4 {[%clk 0:02:37]}  Ne7 {[%clk 0:02:15]} 14. Nxd4 {[%clk 0:02:31]}  Qd7 {[%clk 0:02:02]} 15. Bb5 {[%clk 0:02:17]}  Nbc6 {[%clk 0:02:00]} 16. Nxc6 {[%clk 0:02:18]}  Nxc6 {[%clk 0:01:59]} 17. Rd4 {[%clk 0:02:18]}  a6 {[%clk 0:01:53]} 18. Bxc6 {[%clk 0:02:16]}  Qxc6 {[%clk 0:01:54]} 19. a4 {[%clk 0:02:16]}  a5 {[%clk 0:01:48]} 20. f4 {[%clk 0:02:15]}  Ba6 {[%clk 0:01:32]} 21. Kf2 {[%clk 0:02:16]}  O-O {[%clk 0:01:20]} 22. g5 {[%clk 0:02:14]}  Qc5 {[%clk 0:00:50]} 23. Qg4 {[%clk 0:02:06]}  Kh7 {[%clk 0:00:48]} 24. Rg1 {[%clk 0:02:03]}  Rg8 {[%clk 0:00:34]} 25. f5 {[%clk 0:02:03]}  Bc8 {[%clk 0:00:16]} 26. g6+ {[%clk 0:02:01]}  fxg6 {[%clk 0:00:07]} 27. hxg6+ {[%clk 0:02:00]}  Kh8 {[%clk 0:00:07]} 28. f6 {[%clk 0:02:01]}  Qf8 {[%clk 0:00:06]} 29. Qh5 {[%clk 0:01:58]}  Ra7 {[%clk 0:00:02]} 30. Rh4 {[%clk 0:01:55]} 1-0


[Site "https://www.chess.com"]